{"text_format":"2","workbook":"xlsx","n_sheets":8,"sheets":["Seite 1","Tabelle2","Tabelle1","Seite 2","Tabelle7","Tabelle4","Tabelle5","Tabelle6"],"not_rendered":{"charts":0,"images":1,"macros":0,"external_links":0,"defined_names":2,"comments":0,"pivot_tables":0},"unopened":[],"bounds":{"document_bytes":16777216,"sheet_cells":100000,"run_cost":"one","rows_first":2000,"rows_last":500,"rows_between":2000,"halvings":0,"cell_chars":16384,"cell_head_chars":4096},"cells_cut":0,"cells_raw":0,"read":"whole","date_system":"1900"}

{"sheet":"Seite 1","index":0,"n_rows":71,"n_cols":20,"rows_kept":71,"cut":false,"hidden":false,"merged":[[31,4,31,5],[6,3,6,19],[8,3,8,4],[18,4,18,5],[17,10,17,11],[18,10,18,11],[17,16,17,18],[17,3,17,9],[15,9,15,10],[15,13,15,14],[22,4,22,5],[19,4,19,5],[30,4,30,5],[23,4,23,5],[25,4,25,5],[28,4,28,5],[34,17,34,18],[49,17,49,18],[27,4,27,5],[36,4,36,11],[32,3,32,16],[34,3,34,9],[35,3,35,11],[37,4,37,11],[38,4,38,11],[34,10,34,11],[42,10,42,11],[42,3,42,9],[42,17,42,18],[43,3,43,11],[61,3,61,5],[65,3,65,5],[54,3,54,16],[51,4,51,11],[52,4,52,11],[53,4,53,11],[8,5,8,7],[29,4,29,5],[50,3,50,11],[49,3,49,9],[16,3,16,18],[49,10,49,11],[26,4,26,5],[24,4,24,5],[21,4,21,5],[46,4,46,11],[47,3,47,16],[45,4,45,11],[44,4,44,11],[40,3,40,16],[39,4,39,11],[20,4,20,5],[13,5,13,7],[14,5,14,7],[15,5,15,7],[9,5,9,7],[10,5,10,7],[11,5,11,7],[12,5,12,7]]}
[]
[null,null,null,"Hessischer Handball-Verband e.V."]
[null,null,null,"Otto-Fleck-Schneise 4 ∙ 60528 Frankfurt am Main"]
[null,null,null,"Telefon +49 (0) 69 6789 462 ∙ buchhaltung@hessen-handball.de"]
[null,null,null,"www.hessen-handball.de"]
[]
[null,null,null,"Abrechnungsformular"]
[]
[null,null,null,"Vor- und Nachname:"]
[null,null,null,"Strasse"," "]
[null,null,null,"PLZ & Ort:"," "," "]
[null,null,null,"Funktion:"," "]
[null,null,null,"Bankname:"]
[null,null,null,"BIC"]
[null,null,null,"IBAN:"]
[null,null,null,"E-Mail:",{"$nulls":4},"Zeitraum:"," ",null,null,"bis"," "]
[]
[null,null,null,"Reisekostenabrechnung*"]
[null,null,null,"Datum","Reisegrund",null,"Mitfahrer","Reise                                              von - nach                         (Ort)","Reise                         Abfahrt - Rückkehr","km",null,null,"Verpfl.-Kosten","Fahrtkosten Bahn / Flug","Übern.-Kosten","Parkgeb. / Taxi","Fahrtkosten","Aufwandsentschädigung Pauschal","Gesamt","Buchungskonto (nicht ausfüllen)"]
[{"$nulls":8}," ",0,"km á",0.3,{"$nulls":4},{"$f":"SUM(J20*L20)","v":0},0,{"$f":"SUM(M20:R20)","v":0}]
[null,null,null," ",{"$nulls":5},0,"km á",0.3,{"$nulls":4},{"$f":"J21*L21","v":0},0,{"$f":"SUM(M21:R21)","v":0}]
[null,null,null," ",{"$nulls":4}," ",0,"km á",0.3,{"$nulls":4},0,0,0]
[null,null,null," ",{"$nulls":5},0,"km á",0.3,{"$nulls":4},0,0,0]
[null,null,null," ",{"$nulls":4}," ",0,"km á",0.3,{"$nulls":4},0,0,0]
[{"$nulls":9},0,"km á",0.3,{"$nulls":4},0,0,0]
[{"$nulls":9},0,"km á",0.3,{"$nulls":4},0,0,0]
[{"$nulls":9},0,"km á",0.3,{"$nulls":4},0,0,0]
[{"$nulls":9},0,"km á",0.3,{"$nulls":4},0,0,0]
[{"$nulls":9},0,"km á",0.3,{"$nulls":4},0,0,0]
[{"$nulls":9},0,"km á",0.3,{"$nulls":4},0,0,0]
[{"$nulls":9},0,"km á",0.3,{"$nulls":4},0,0,0]
[{"$nulls":9},0,"km á",0.3,{"$nulls":4},0,0,0]
[null,null,null,"                                                                                                                                                                                                                  Konto 30x4",{"$nulls":13},"Summe:",{"$f":"SUM(S20:S32)","v":0}]
[]
[null,null,null,"Porto- und Telefonabrechnung*"]
[null,null,null,"Auszahlung nur gegen entsprechende Nachweise oder Pauschale!",{"$nulls":14},"Betrag"]
[{"$nulls":4}," ",{"$nulls":13},0]
[{"$nulls":4}," ",{"$nulls":13},0]
[{"$nulls":4}," ",{"$nulls":13},0]
[{"$nulls":4}," ",{"$nulls":13},0]
[null,null,null,"                                                                                                                     Konto 30x3",{"$nulls":13},"Summe:",{"$f":"SUM(S37:S40)","v":0}]
[]
[null,null,null,"Büromaterial (nur Original-Belege mit ausgewiesener MwSt.)*"]
[null,null,null,"Rechnungen mit Anschrift: HHV, Otto-Fleck-Schneise 4, 60528 Frankfurt/Main",{"$nulls":12},"Netto","MwSt.","Brutto"]
[null,null,null," "," ",{"$nulls":11},0,0,0]
[null,null,null," "," ",{"$nulls":11}," "," "," "]
[null,null,null," "," ",{"$nulls":11}," "," "," "]
[null,null,null,"                                                                                                                                                                                                                  Konto 30x5",{"$nulls":13},"Summe:",{"$f":"SUM(S45:S47)","v":0}]
[]
[null,null,null,"Sonstige Rechnungen/Nebenkosten (nur Original-Belege mit ausgewiesener MwSt.)*"]
[null,null,null,"Rechnungen mit Anschrift: HHV, Otto-Fleck-Schneise 4, 60528 Frankfurt/Main",{"$nulls":12},"Netto","MwSt.","Brutto"]
[null,null,null," "," ",{"$nulls":11},0,0,0]
[null,null,null," "," ",{"$nulls":11},0,0,0]
[{"$nulls":16},0,0,{"$f":"Q54+R54","v":0}]
[null,null,null,"                                                                                                                    Konto 30x8",{"$nulls":13},"Summe:",{"$f":"SUM(S52:S54)","v":0}]
[]
[{"$nulls":17},"Gesamtbetrag:",{"$f":"SUM(S33+S41+S48+S55)","v":0}]
[]
[null,null,null,"Hiermit versichere ich, dass die Vorschriften der FGO beachtet wurden. "]
[]
[]
[null,null,null," ",{"$nulls":6}," "]
[null,null,null,"Datum, Unterschrift - Antragsteller",{"$nulls":6},"Datum, Unterschrift - gesehen und geprüft - "]
[{"$nulls":10},"Bezirksfinanzwart"]
[]
[]
[null,null,null,"Datum, Unterschrift - HHV-Buchhaltung - geprüft/überwiesen"]
[]
[]
[]
[null,null,null,"*Hinweise zur Abrechnung s. Seite 2"]

{"sheet":"Tabelle2","index":1,"n_rows":3,"n_cols":1,"rows_kept":3,"cut":false,"hidden":true,"merged":[]}
[0]
[7.0000000000000007E-2]
[0.19]

{"sheet":"Tabelle1","index":2,"n_rows":0,"n_cols":0,"rows_kept":0,"cut":false,"hidden":true,"merged":[]}

{"sheet":"Seite 2","index":3,"n_rows":28,"n_cols":7,"rows_kept":28,"cut":false,"hidden":false,"merged":[[15,4,16,5],[17,4,18,5],[0,0,0,10]]}
["Hinweise zur Abrechnung laut FGO d. HHV"]
[]
[]
[null,null,"Aufwandsentschädigung - Präsenz:",null,null,null,15]
[null,null,"Aufwandsentschädigung - online:",null,null,null,10]
[null,null,"Fahrtkosten: ",null,"pro Km","=","0,30/0,35* €"]
[{"$nulls":4},"jede weitere Person  =",null,0.02]
[null,null,"*Bei Abrechnung von 0,35 €/km  sind 0,05 €/km der Einkommenssteuer zu unterwerfen (0,30 €/km sind steuerfrei)."]
[]
[null,null,"Telefonpauschale - monatlich:",null,null,null,25]
[null,null,"Erstattung Portokosten erfolgt nur gegen Vorlage separater Portoliste"]
[]
[null,null,"Alle geltend gemachten Verpflegungs-, Fahrt- und Übernachtungskosten "]
[null,null,"können nur bei Vorlage entsprechender Originalbelege erstattet werden!"]
[]
[null,null,"Verflegungskosten:",null,"bei Abwesenheit von mehr als 8 Stunden =",null,14]
[]
[{"$nulls":4},"bei Abwesenheit von mehr als 24 Stunden =",null,28]
[]
[]
[null,null,"Verpflegungskürzungen bei Abrechungen mit Beleg: "]
[null,null,"(Abrechnung erfolgt immer an Hand Ganztagessatz)"]
[null,null,"Frühstück",null,null,-0.2,-5.6]
[null,null,"Mittagessen",null,null,-0.4,-11.2]
[null,null,"Abendessen",null,null,-0.4,-11.2]
[null,null,"Frühstück & Mittag-/Abendessen",null,null,-0.6,-16.8]
[null,null,"Mittag- & Abendessen",null,null,-0.8,-22.4]
[null,null,"Vollpension",null,null,-1,-28]

{"sheet":"Tabelle7","index":4,"n_rows":8,"n_cols":1,"rows_kept":8,"cut":false,"hidden":true,"merged":[]}
[]
[]
[15]
[10]
[20]
[30]
[35]
[50]

{"sheet":"Tabelle4","index":5,"n_rows":10,"n_cols":1,"rows_kept":10,"cut":false,"hidden":true,"merged":[]}
[]
[]
[0.3]
[0.32]
[0.34]
[0.36]
[0.35]
[0.37]
[0.39]
[0.41]

{"sheet":"Tabelle5","index":6,"n_rows":23,"n_cols":1,"rows_kept":23,"cut":false,"hidden":true,"merged":[]}
[]
["erweitertes Präsidium"]
["Präsidium"]
["AK Aus- und Weiterbildung (HHV)"]
["AK Nachwuchsleistungssport (HHV)"]
["AK Mitgliederentwicklung (HHV)"]
["AK Ehrungen (HHV)"]
["AK Schulsport (HHV)"]
["AK Satzungen u. Ordnungen (HHV)"]
["AK Schiedsrichter (HHV)"]
["AG Schiedsrichterlehrwesen"]
["AK Spielbetrieb Jugend (HHV)"]
["AK Spieltechnik (HHV)"]
["AK Finanzen (HHV)"]
["Bezirksspielauschuss"]
["AK Methodik (Bezirk)"]
["AK Jugend (Bezirk)"]
["AK Spieltechnik (Bezirk)"]
["AK Schiedsrichter (Bezirk)"]
["SR-Lehrgang"]
["SR-Beobachtung"]
["Z/S-Ausbildung"]
["Schulung"]

{"sheet":"Tabelle6","index":7,"n_rows":4,"n_cols":1,"rows_kept":4,"cut":false,"hidden":true,"merged":[]}
[]
[]
["pauschale Telefon und Internetkosten"]
["Portoliste"]